fUSD/lending_fUSD_20260521
["ID","MTS","AMOUNT","RATE_DAILY","PERIOD"]
[422752244,1779357032000,-350.0,0.00018,2]
[422752255,1779357032000,-333.72647785,0.000184,2]
[422752256,1779357032000,-546.15549293,0.000184,2]
[422752258,1779357032000,-150.0,0.0001847,2]
[422752259,1779357032000,-150.0,0.0001847,2]
[422752260,1779357032000,-166.85944252,0.0001847,2]
[422752254,1779357032000,-175.13,0.0001836,2]
[422752261,1779357032000,-165.55632728,0.0001847,2]
[422752257,1779357032000,-293.3,0.0001841,2]
[422752262,1779357032000,-8.768949,0.0001847,2]
[422752307,1779357038000,-191.87295522,0.00019475,2]
[422752302,1779357038000,-37.15892435,0.00019475,2]
[422752300,1779357038000,-244.40471323,0.00019475,2]
[422752303,1779357038000,-185.02695778,0.00019475,2]
[422752301,1779357038000,-113.84107565,0.00019475,2]
[422752299,1779357038000,-88.02408164,0.00019475,2]
[422752297,1779357038000,-151.0,0.00019475,2]
[422752295,1779357038000,-200.0,0.00019475,2]
[422752294,1779357038000,-257.23,0.00019364,2]
[422752296,1779357038000,-151.0,0.00019475,2]
[422752293,1779357038000,-154.60034624,0.00019236,3]
[422752290,1779357038000,-552.93113016,0.00019178,2]
[422752291,1779357038000,-1747.779768,0.00019178,2]
[422752289,1779357038000,-571.18927001,0.00019178,2]
[422752292,1779357038000,-192.96,0.00019209,2]
[422752306,1779357038000,-1734.62772924,0.00019475,2]
[422752298,1779357038000,-62.97591836,0.00019475,2]
[422752305,1779357038000,-25.09490487,0.00019475,2]
[422752319,1779357038000,-151.0,0.00019475,2]
[422752309,1779357038000,-239.02243455,0.00019475,2]
[422752304,1779357038000,-125.90509513,0.00019475,2]
[422752325,1779357038000,-2621.19849465,0.0001957,2]
[422752328,1779357038000,-503.47737862,0.0001957,2]
[422752323,1779357038000,-101.04894155,0.0001957,2]
[422752322,1779357038000,-151.0,0.00019475,2]
[422752316,1779357038000,-151.0,0.00019475,2]
[422752320,1779357038000,-151.0,0.00019475,2]
[422752318,1779357038000,-151.0,0.00019475,2]
[422752321,1779357038000,-151.0,0.00019475,2]
[422752312,1779357038000,-151.0,0.00019475,2]
[422752315,1779357038000,-151.0,0.00019475,2]
[422752314,1779357038000,-151.0,0.00019475,2]
[422752313,1779357038000,-151.0,0.00019475,2]
[422752310,1779357038000,-151.0,0.00019475,2]
[422752311,1779357038000,-151.0,0.00019475,2]
[422752308,1779357038000,-151.0,0.00019475,2]
[422752317,1779357038000,-151.0,0.00019475,2]
[422752388,1779357040000,-1977.27226066,0.000199,3]
[422752386,1779357040000,-66.27518518,0.0001957,2]
[422752387,1779357040000,-150.0,0.00019818,2]
[422752396,1779357042000,-223.0,0.0002,2]
[422752394,1779357042000,-164.4164395,0.000199,3]
[422752397,1779357042000,-1531.0,0.0002,2]
[422752395,1779357042000,-1200.0,0.00019999,2]
[422752403,1779357042000,-293.3,0.00020381,2]
[422752398,1779357042000,-267.0,0.0002,2]
[422752400,1779357042000,-366.0,0.0002,2]
[422752402,1779357042000,-1798.80895522,0.00020023,2]
[422752401,1779357042000,-156.0,0.0002,2]
[422752399,1779357042000,-539.0,0.0002,2]
[422752412,1779357043000,-1865.36488656,0.00020571,2]
[422752404,1779357043000,-2799.29874365,0.00020434,2]
[422752406,1779357043000,-286.80126933,0.00020434,2]
[422752405,1779357043000,-10584.35291694,0.00020434,2]
[422752407,1779357043000,-3548.76205583,0.00020434,2]
[422752409,1779357043000,-890.83045307,0.00020434,2]
[422752408,1779357043000,-730.48049219,0.00020434,2]
[422752410,1779357043000,-2193.31730551,0.00020434,2]
[422752413,1779357043000,-1875.31,0.0002062,2]
[422752414,1779357043000,-150.0,0.00020808,2]
[422752411,1779357043000,-25266.74676348,0.00020434,2]
[422752416,1779357043000,-1531.0,0.00021,2]
[422752426,1779357043000,-284.58377262,0.00021476,2]
[422752427,1779357043000,-456.92043422,0.00021476,2]
[422752423,1779357043000,-156.0,0.00021,2]
[422752418,1779357043000,-539.0,0.00021,2]
[422752415,1779357043000,-223.0,0.00021,2]
[422752421,1779357043000,-214.57132082,0.00021,2]
[422752419,1779357043000,-151.42867918,0.00021,2]
[422752425,1779357043000,-124.94622738,0.00021119,2]
[422752417,1779357043000,-267.0,0.00021,2]
[422752424,1779357043000,-1809.43715998,0.00021119,2]
[422752428,1779357045000,-492.98298303,0.00021476,2]
[422752430,1779357046000,-1265.51281013,0.00021476,2]
[422752431,1779357046000,-4609.0,0.00021527,2]
[422752434,1779357046000,-8.10856014,0.000217,2]
[422752437,1779357046000,-150.0,0.00021849,2]
[422752435,1779357046000,-1991.89143986,0.000217,2]
[422752432,1779357046000,-1647.37392878,0.00021667,2]
[422752436,1779357046000,-500.0,0.00021799,2]
[422752438,1779357046000,-500.0,0.00021899,2]
[422752439,1779357046000,-5000.0,0.00021918,2]
[422752441,1779357046000,-543.61263552,0.00022,2]
[422752433,1779357046000,-358.58164392,0.00021667,2]
[422752443,1779357046000,-267.0,0.00022,2]
[422752451,1779357046000,-775.37566507,0.00022,2]
[422752447,1779357046000,-657.63503552,0.00022,2]
[422752444,1779357046000,-539.0,0.00022,2]
[422752440,1779357046000,-223.0,0.00022,2]
[422752446,1779357046000,-162.0,0.00022,2]
[422752450,1779357046000,-381.23466672,0.00022,2]
[422752448,1779357046000,-511.63701206,0.00022,2]
[422752445,1779357046000,-366.0,0.00022,2]
[422752449,1779357046000,-576.47645733,0.00022,2]
[422752442,1779357046000,-987.38736448,0.00022,2]
[422752452,1779357565000,5061.142,0.00028767,120]
[422752453,1779357703000,5007.34,0.00028767,120]
[422752454,1779357839000,5000.0,0.00028767,120]
[422752455,1779357994000,-153.21532177,0.00010421,2]
[422752456,1779358141000,1000.0,0.00028766,120]
[422752459,1779358150000,-151.37,0.00010716,2]
[422752458,1779358150000,-151.37,9.919e-05,2]
[422752457,1779358150000,-151.37,9.122e-05,2]
[422752461,1779358150000,-151.37,0.00011512,2]
[422752460,1779358150000,-250.0,0.00011463,2]
[422752462,1779358150000,-151.37,0.00012309,2]
[422752465,1779358150000,-300.0,0.00013772,2]
[422752464,1779358150000,-474.424109,0.00013704,2]
[422752466,1779358150000,-150.0,0.00013772,2]
[422752467,1779358150000,-1435.490819,0.00013773,2]
[422752463,1779358150000,-151.37,0.00013106,2]
[422752472,1779358231000,-264.00221638,0.000137,2]
[422752473,1779358231000,-315.221382,0.000137,2]
[422752470,1779358231000,-474.20905484,0.000137,2]
[422752471,1779358231000,-819.56436745,0.000137,2]
[422752502,1779358232000,-1098.22337451,0.000164,2]
[422752511,1779358232000,-1016.7,0.00017027,2]
[422752510,1779358232000,-680.65626998,0.00016789,2]
[422752508,1779358232000,-680.65626998,0.00016689,2]
[422752509,1779358232000,-166.66,0.00016689,2]
[422752500,1779358232000,-1098.22337451,0.000163,2]
[422752507,1779358232000,-2351.0,0.00016665,2]
[422752499,1779358232000,-6223.25,0.00016293,2]
[422752515,1779358232000,-152.0,0.00017106,2]
[422752505,1779358232000,-295.1,0.00016438,2]
[422752506,1779358232000,-1098.22337451,0.000166,2]
[422752516,1779358232000,-278.02619772,0.00017106,2]
[422752517,1779358232000,-1147.71,0.00017272,2]
[422752514,1779358232000,-1386.0,0.00017106,2]
[422752513,1779358232000,-151.37,0.0001709,2]
[422752518,1779358232000,-166.66,0.00017377,2]
[422752520,1779358232000,-1896.65,0.00017439,2]
[422752521,1779358232000,-166.66,0.00017721,2]
[422752519,1779358232000,-736.0,0.00017395,2]
[422752525,1779358232000,-200.0,0.00017889,2]
[422752522,1779358232000,-2217.1,0.0001782,2]
[422752523,1779358232000,-175.77,0.00017837,2]
[422752526,1779358232000,-150.0,0.00017892,2]
[422752512,1779358232000,-166.66,0.00017033,2]
[422752501,1779358232000,-166.66,0.00016345,2]
[422752474,1779358232000,-2563.8452346,0.000137,2]
[422752496,1779358232000,-1098.22337451,0.000161,2]
[422752475,1779358232000,-1200.0,0.00013772,2]
[422752524,1779358232000,-151.37,0.00017886,2]
[422752477,1779358232000,-2500.0,0.00013773,2]
[422752476,1779358232000,-1064.509181,0.00013773,2]
[422752480,1779358232000,-300.0,0.00013773,2]
[422752479,1779358232000,-942.78025288,0.00013773,2]
[422752478,1779358232000,-2500.0,0.00013773,2]
[422752481,1779358232000,-300.0,0.00013773,2]
[422752483,1779358232000,-300.0,0.00013773,2]
[422752482,1779358232000,-300.0,0.00013773,2]
[422752485,1779358232000,-151.37,0.00013903,2]
[422752486,1779358232000,-649.03,0.00014,2]
[422752484,1779358232000,-300.0,0.00013773,2]
[422752487,1779358232000,-175.31,0.00014287,2]
[422752488,1779358232000,-151.37,0.00014699,2]
[422752490,1779358232000,-1680.0,0.0001515,2]
[422752489,1779358232000,-255.0,0.00014888,2]
[422752491,1779358232000,-2500.0,0.00015151,2]
[422752492,1779358232000,-600.0,0.00015151,2]
[422752493,1779358232000,-150.0,0.00015151,2]
[422752494,1779358232000,-151.37,0.00015496,2]
[422752495,1779358232000,-1098.22337451,0.000159,2]
[422752497,1779358232000,-433.0,0.000161,2]
[422752498,1779358232000,-151.37,0.00016293,2]
[422752528,1779358232000,-500.58971678,0.00018,2]
[422752534,1779358232000,-819.23323939,0.000182,2]
[422752529,1779358232000,-819.23323939,0.00018,2]
[422752561,1779358232000,-251.0,0.0002,2]
[422752562,1779358232000,-311.0,0.0002,2]
[422752563,1779358232000,-152.18735834,0.0002,20]
[422752556,1779358232000,-190.0,0.0002,2]
[422752555,1779358232000,-450.0,0.00019932,2]
[422752557,1779358232000,-516.53538034,0.0002,2]
[422752565,1779358232000,-139.73339592,0.0002016,2]
[422752564,1779358232000,-20.0402949,0.0002016,2]
[422752570,1779358232000,-169.45,0.00020424,2]
[422752567,1779358232000,-3322.0,0.00020164,2]
[422752566,1779358232000,-164.11863008,0.0002016,2]
[422752527,1779358232000,-2206.13,0.00017921,2]
[422752569,1779358232000,-295.1,0.00020381,2]
[422752571,1779358232000,-2814.14009727,0.00020738,2]
[422752573,1779358232000,-3444.5347382,0.00020824,2]
[422752572,1779358232000,-1865.36488656,0.00020807,2]
[422752574,1779358232000,-1029.4161128,0.00020838,2]
[422752576,1779358232000,-12590.95657797,0.00020838,2]
[422752575,1779358232000,-172.4957055,0.00020838,2]
[422752578,1779358232000,-5098.62955294,0.00020838,2]
[422752577,1779358232000,-21474.26477213,0.00020838,2]
[422752580,1779358232000,-250.0,0.00020838,2]
[422752579,1779358232000,-448.42004428,0.00020838,2]
[422752560,1779358232000,-458.0,0.0002,2]
[422752559,1779358232000,-252.0,0.0002,2]
[422752568,1779358232000,-1798.80895522,0.00020259,2]
[422752553,1779358232000,-1734.62772924,0.00019711,2]
[422752531,1779358232000,-166.66,0.00018066,2]
[422752532,1779358232000,-250.0,0.00018197,2]
[422752533,1779358232000,-500.58971678,0.000182,2]
[422752539,1779358232000,-150.0,0.00018409,2]
[422752535,1779358232000,-2217.1,0.00018265,2]
[422752537,1779358232000,-500.58971678,0.000184,2]
[422752530,1779358232000,-150.0,0.00018,2]
[422752536,1779358232000,-3292.0,0.00018331,2]
[422752538,1779358232000,-819.23323939,0.000184,2]
[422752540,1779358232000,-295.1,0.0001841,2]
[422752558,1779358232000,-1109.46461966,0.0002,2]
[422752542,1779358232000,-500.58971678,0.000185,2]
[422752544,1779358232000,-450.0,0.00018562,2]
[422752550,1779358232000,-150.0,0.00019329,2]
[422752543,1779358232000,-819.23323939,0.000185,2]
[422752551,1779358232000,-2217.1,0.00019601,2]
[422752545,1779358232000,-500.58971678,0.000187,2]
[422752546,1779358232000,-819.23323939,0.000187,2]
[422752549,1779358232000,-2217.1,0.00019156,2]
[422752548,1779358232000,-418.0,0.00018813,2]
[422752547,1779358232000,-2217.1,0.0001871,2]
[422752552,1779358232000,-1896.65,0.00019619,2]
[422752554,1779358232000,-159.81,0.00019788,2]
[422752541,1779358232000,-167.09,0.00018419,2]
[422752595,1779358238000,-329.16,0.00020838,2]
[422752594,1779358238000,-559.53,0.00020838,2]
[422752680,1779358240000,-4773.73304687,0.00020838,2]
[422752682,1779358240000,-40692.71983131,0.00020838,2]
[422752683,1779358240000,-1499.83754391,0.00020838,2]
[422752681,1779358240000,-16968.74394851,0.00020838,2]
[422752704,1779358243000,-520.64,0.00021757,2]
[422752706,1779358243000,-2641.74,0.00021757,2]
[422752707,1779358243000,-299.99,0.00021757,7]
[422752703,1779358243000,-3013.92,0.00021757,2]
[422752705,1779358243000,-9999.99,0.00021757,2]
[422752699,1779358243000,-509.0,0.00021587,2]
[422752702,1779358243000,-3659.37,0.00021757,5]
[422752701,1779358243000,-3743.67,0.00021757,2]
[422752708,1779358243000,-150.99,0.00021757,2]
[422752700,1779358243000,-4345.45550118,0.00021699,2]
[422752697,1779358243000,-193.17,0.00021186,2]
[422752696,1779358243000,-311.0,0.00021,2]
[422752695,1779358243000,-458.0,0.00021,2]
[422752689,1779358243000,-50836.19041108,0.00020838,2]
[422752693,1779358243000,-1626.0,0.00021,2]
[422752692,1779358243000,-190.0,0.00021,2]
[422752694,1779358243000,-252.0,0.00021,2]
[422752691,1779358243000,-151.0,0.00020838,2]
[422752690,1779358243000,-1309.9782162,0.00020838,2]
[422752687,1779358243000,-1695.77382258,0.00020838,2]
[422752688,1779358243000,-2654.39259272,0.00020838,2]
[422752698,1779358243000,-1934.38338736,0.00021355,2]
[422752710,1779358243000,-8208.19,0.00021757,2]
[422752722,1779358243000,-500.0,0.00021899,2]
[422752709,1779358243000,-10600.71,0.00021757,2]
[422752715,1779358243000,-500.0,0.00021899,2]
[422752734,1779358243000,-673.3,0.000219,2]
[422752733,1779358243000,-3106.84,0.000219,2]
[422752729,1779358243000,-595.0,0.00021899,2]
[422752730,1779358243000,-10281.7995,0.000219,2]
[422752731,1779358243000,-280674.72015626,0.000219,2]
[422752721,1779358243000,-374.2529762,0.00021899,2]
[422752726,1779358243000,-500.0,0.00021899,2]
[422752724,1779358243000,-500.0,0.00021899,2]
[422752723,1779358243000,-500.0,0.00021899,2]
[422752732,1779358243000,-565.02109433,0.000219,2]
[422752728,1779358243000,-500.0,0.00021899,2]
[422752727,1779358243000,-500.0,0.00021899,2]
[422752725,1779358243000,-500.0,0.00021899,2]
[422752720,1779358243000,-500.0,0.00021899,2]
[422752719,1779358243000,-500.0,0.00021899,2]
[422752718,1779358243000,-500.0,0.00021899,2]
[422752713,1779358243000,-4270.37591077,0.000218,2]
[422752717,1779358243000,-500.0,0.00021899,2]
[422752712,1779358243000,-2500.0,0.000218,2]
[422752716,1779358243000,-500.0,0.00021899,2]
[422752711,1779358243000,-1896.65,0.00021799,2]
[422752714,1779358243000,-500.0,0.00021802,2]
[422752738,1779358246000,-505.0,0.000219,2]
[422752739,1779358246000,-252.17873718,0.000219,2]
[422752742,1779358246000,-2240.91048,0.000219,2]
[422752740,1779358246000,-9769.63196662,0.000219,2]
[422752744,1779358246000,-1893.12,0.000219,2]
[422752741,1779358246000,-615.32293987,0.000219,2]
[422752743,1779358246000,-572.01969778,0.000219,2]
[422752745,1779358246000,-7560.78717971,0.000219,2]
[422752750,1779358255000,500.0,0.00027398,120]
[422752769,1779359013000,10000.0,0.00028767,120]
[422752771,1779359156000,501.47,0.00027549,120]
[422752772,1779359207000,-153.73,8.586e-05,2]
[422752773,1779359207000,-228.53669834,9.445e-05,2]
[422752774,1779359221000,2282.2,0.0002876,120]
[422752775,1779359285000,350.0,0.00028767,120]
[422752776,1779359325000,208.0,0.00028767,120]
[422752777,1779359340000,1000.0,0.00028766,120]
[422752778,1779359342000,307.0,0.00028767,120]
[422752779,1779359370000,-21.46330166,9.445e-05,2]
[422752781,1779359370000,-586.85742027,0.00011,2]
[422752782,1779359370000,-1955.56544098,0.00011829,2]
[422752780,1779359370000,-271.31959509,0.000107,2]
[422752815,1779359432000,-707.76609952,0.000159,2]
[422752817,1779359432000,-300.0,0.00016,2]
[422752810,1779359432000,-3843.33831972,0.00015237,2]
[422752812,1779359432000,-568.6,0.00015403,2]
[422752808,1779359432000,-160346.77992252,0.00015,2]
[422752809,1779359432000,-52038.21878381,0.00015,2]
[422752811,1779359432000,-4013.75826991,0.00015237,2]
[422752807,1779359432000,-105565.63782369,0.00015,2]
[422752804,1779359432000,-2711.48949035,0.000149,2]
[422752805,1779359432000,-1349.28756852,0.00014999,5]
[422752803,1779359432000,-150.0,0.00014899,2]
[422752801,1779359432000,-7765.7,0.00014,5]
[422752798,1779359432000,-21.38525251,0.00014,2]
[422752795,1779359432000,-300.0,0.00013745,2]
[422752796,1779359432000,-300.0,0.00013745,2]
[422752800,1779359432000,-622.62168528,0.00014,5]
[422752799,1779359432000,-228.61474749,0.00014,2]
[422752793,1779359432000,-156.53774041,0.00013745,2]
[422752794,1779359432000,-143.46225959,0.00013745,2]
[422752792,1779359432000,-300.0,0.00013745,2]
[422752790,1779359432000,-559.35859561,0.00011829,2]
[422752791,1779359432000,-300.0,0.00013745,2]
[422752802,1779359432000,-40603.28593139,0.00014,5]
[422752813,1779359432000,-568.6,0.00015788,2]
[422752797,1779359432000,-1179.0,0.00013999,2]
[422752818,1779359432000,-226.88542332,0.00016,2]
[422752814,1779359432000,-4507.09992518,0.000159,2]
[422752849,1779359432000,-584.11547155,0.000173,2]
[422752850,1779359432000,-1.12102123,0.00017311,2]
[422752839,1779359432000,-5214.8660247,0.000169,2]
[422752841,1779359432000,-568.6,0.00016943,2]
[422752844,1779359432000,-170.16,0.00017127,2]
[422752837,1779359432000,-758.66,0.00016835,2]
[422752835,1779359432000,-5214.8660247,0.000168,2]
[422752846,1779359432000,-560.48,0.00017179,2]
[422752833,1779359432000,-5214.8660247,0.000166,2]
[422752848,1779359432000,-4630.75055315,0.000173,2]
[422752831,1779359432000,-568.6,0.00016558,2]
[422752806,1779359432000,-646.77472674,0.00014999,2]
[422752845,1779359432000,-500.0,0.00017147,2]
[422752828,1779359432000,-2337.27387448,0.000163,2]
[422752829,1779359432000,-5214.8660247,0.000164,2]
[422752830,1779359432000,-221.3,0.00016438,2]
[422752820,1779359432000,-5214.8660247,0.000161,2]
[422752822,1779359432000,-568.6,0.00016173,2]
[422752827,1779359432000,-2877.59215022,0.000163,2]
[422752821,1779359432000,-226.88542332,0.000161,2]
[422752819,1779359432000,-255.0,0.00016031,2]
[422752825,1779359432000,-170.16,0.00016271,2]
[422752843,1779359432000,-5214.8660247,0.000171,2]
[422752847,1779359432000,-283.0,0.00017253,2]
[422752824,1779359432000,-226.88542332,0.000162,2]
[422752874,1779359438000,-278.14779922,0.000174,2]
[422752873,1779359438000,-69.7098437,0.000174,2]
[422752872,1779359438000,-523.28469679,0.00017311,2]
[422752871,1779359438000,-2187.0837723,0.00017311,2]
[422752990,1779359443000,-3843.33831964,0.00017611,2]
[422752993,1779359443000,-170.16,0.00017983,2]
[422752991,1779359443000,-166.66,0.00017641,2]
[422752992,1779359443000,-200.0,0.00017796,2]
[422752989,1779359443000,-4867.00838178,0.000174,2]
[422752994,1779359443000,-350.0,0.00018,2]
[422752996,1779359443000,-221.3,0.0001841,2]
[422752995,1779359443000,-212.65,0.00018263,2]
[422752999,1779359443000,-161.8928073,0.0001894,2]
[422752998,1779359443000,-95.11497129,0.00018566,2]
[422753000,1779359443000,-596.7671927,0.0001894,2]
[422753001,1779359443000,-110.99364407,0.00019222,2]
[422752997,1779359443000,-3918.64329858,0.00018566,2]
[422753020,1779359446000,-55.43635593,0.00019222,2]
[422753018,1779359446000,-151.0,0.00019222,2]
[422753010,1779359446000,-40.00635593,0.00019222,2]
[422753013,1779359446000,-151.0,0.00019222,2]
[422753014,1779359446000,-151.0,0.00019222,2]
[422753016,1779359446000,-151.0,0.00019222,2]
[422753015,1779359446000,-151.0,0.00019222,2]
[422753017,1779359446000,-151.0,0.00019222,2]
[422753011,1779359446000,-151.0,0.00019222,2]
[422753027,1779359446000,-151.0,0.00019222,2]
[422753012,1779359446000,-200.0,0.00019222,2]
[422753023,1779359446000,-1734.62772924,0.00019222,2]
[422753024,1779359446000,-500.0,0.00019222,2]
[422753022,1779359446000,-151.0,0.00019222,2]
[422753021,1779359446000,-151.0,0.00019222,2]
[422753034,1779359446000,-1798.80895522,0.0001977,2]
[422753033,1779359446000,-2711.48949032,0.00019722,2]
[422753030,1779359446000,-151.0,0.00019222,2]
[422753029,1779359446000,-151.0,0.00019222,2]
[422753032,1779359446000,-1164.68,0.00019594,2]
[422753028,1779359446000,-151.0,0.00019222,2]
[422753026,1779359446000,-521.14864821,0.00019222,2]
[422753019,1779359446000,-95.56364407,0.00019222,2]
[422753025,1779359446000,-151.0,0.00019222,2]
[422753031,1779359446000,-151.0,0.00019222,2]
[422753036,1779359447000,-400.0,0.0002,2]
[422753037,1779359447000,-1865.36488656,0.00020318,2]
[422753038,1779359447000,-221.3,0.00020381,2]
[422753035,1779359447000,-3843.33831964,0.00019984,2]
[422753041,1779359447000,-500.0,0.00020636,2]
[422753040,1779359447000,-500.0,0.00020636,2]
[422753043,1779359447000,-500.0,0.00020636,2]
[422753051,1779359447000,-500.0,0.00020637,2]
[422753042,1779359447000,-500.0,0.00020636,2]
[422753045,1779359447000,-500.0,0.00020637,2]
[422753047,1779359447000,-400.44866296,0.00020637,2]
[422753046,1779359447000,-460.88402034,0.00020637,2]
[422753048,1779359447000,-500.0,0.00020637,2]
[422753049,1779359447000,-500.0,0.00020637,2]
[422753052,1779359447000,-5443.43923158,0.00020638,2]
[422753054,1779359447000,-3880.0,0.00020638,2]
[422753053,1779359447000,-7766.08907444,0.00020638,2]
[422753039,1779359447000,-500.0,0.00020636,2]
[422753044,1779359447000,-512.813,0.00020636,2]
[422753050,1779359447000,-500.0,0.00020637,2]
[422753060,1779360104000,551.93,0.00027579,120]
[422753061,1779360240000,272.07,0.00028767,120]
[422753063,1779360419000,-45.93292656,0.00014,2]
[422753062,1779360419000,-168.25,0.00014,2]
[422753066,1779360541000,1000.0,0.00028766,120]
[422753095,1779360632000,-300.0,0.00016,2]
[422753097,1779360632000,-1146.5746996,0.000163,2]
[422753098,1779360632000,-197.8,0.00016438,2]
[422753103,1779360632000,-500.0,0.00017863,2]
[422753102,1779360632000,-2000.0,0.00017784,2]
[422753101,1779360632000,-582.34,0.00016752,2]
[422753100,1779360632000,-1146.5746996,0.000167,2]
[422753099,1779360632000,-1146.5746996,0.000165,2]
[422753115,1779360632000,-599.2,0.00019678,2]
[422753105,1779360632000,-162.39,0.00018059,2]
[422753107,1779360632000,-154.0,0.00018371,2]
[422753096,1779360632000,-1146.5746996,0.000162,2]
[422753108,1779360632000,-197.8,0.0001841,2]
[422753104,1779360632000,-350.0,0.00018,2]
[422753112,1779360632000,-2098.17872627,0.00019635,2]
[422753114,1779360632000,-182.53,0.00019678,2]
[422753111,1779360632000,-200.0,0.00019319,2]
[422753109,1779360632000,-184.57,0.00018913,2]
[422753106,1779360632000,-166.95,0.00018232,2]
[422753113,1779360632000,-2728.94782382,0.00019635,2]
[422753116,1779360632000,-376.78777553,0.00019733,2]
[422753094,1779360632000,-1146.5746996,0.00016,2]
[422753092,1779360632000,-208.68854764,0.00015981,2]
[422753118,1779360632000,-525.68090872,0.00019734,2]
[422753072,1779360632000,-250.0,0.00014,2]
[422753071,1779360632000,-122.31707344,0.00014,2]
[422753079,1779360632000,-2500.0,0.00014316,2]
[422753078,1779360632000,-534.0,0.00014315,2]
[422753076,1779360632000,-300.0,0.000142,2]
[422753074,1779360632000,-2500.0,0.00014062,2]
[422753073,1779360632000,-300.0,0.00014031,2]
[422753077,1779360632000,-293.0,0.00014315,2]
[422753075,1779360632000,-300.0,0.00014125,2]
[422753081,1779360632000,-163.32305236,0.000149,2]
[422753090,1779360632000,-300.0,0.000154,2]
[422753080,1779360632000,-951.21790479,0.00014316,2]
[422753089,1779360632000,-2500.0,0.000154,2]
[422753091,1779360632000,-300.0,0.000154,2]
[422753082,1779360632000,-500.0,0.00014999,2]
[422753085,1779360632000,-578.19370214,0.00014999,2]
[422753087,1779360632000,-300.0,0.000154,2]
[422753086,1779360632000,-150.0,0.00015399,2]
[422753084,1779360632000,-551.93,0.00014999,2]
[422753083,1779360632000,-500.0,0.00014999,2]
[422753088,1779360632000,-2500.0,0.000154,2]
[422753093,1779360632000,-160.0,0.00015981,2]
[422753129,1779360632000,-500.0,0.00019734,2]
[422753117,1779360632000,-500.0,0.00019734,2]
[422753119,1779360632000,-500.0,0.00019734,2]
[422753120,1779360632000,-500.0,0.00019734,2]
[422753176,1779360632000,-500.0,0.00019734,2]
[422753183,1779360632000,-500.0,0.00019734,2]
[422753185,1779360632000,-500.0,0.00019734,2]
[422753187,1779360632000,-500.0,0.00019734,2]
[422753190,1779360632000,-500.0,0.00019734,2]
[422753192,1779360632000,-180534.4107578,0.00019735,2]
[422753194,1779360632000,-92846.5307629,0.00019735,2]
[422753196,1779360632000,-171.4932865,0.00019735,2]
[422753198,1779360632000,-164933.77386698,0.00019735,2]
[422753201,1779360632000,-46976.60237992,0.00019735,2]
[422753214,1779360632000,-2000.0,0.00020306,2]
[422753212,1779360632000,-168.25,0.000201,2]
[422753216,1779360632000,-1076.66,0.00020306,2]
[422753218,1779360632000,-197.8,0.00020381,2]
[422753203,1779360632000,-151.0,0.00019735,2]
[422753220,1779360632000,-200.0,0.00020486,2]
[422753205,1779360632000,-500.0,0.00019735,2]
[422753210,1779360632000,-300.0,0.00019768,2]
[422753222,1779360632000,-80336.222,0.00020538,2]
[422753208,1779360632000,-200.0,0.00019768,2]
[422753181,1779360632000,-500.0,0.00019734,2]
[422753163,1779360632000,-159.04705004,0.00019734,2]
[422753179,1779360632000,-500.0,0.00019734,2]
[422753172,1779360632000,-167.58895065,0.00019734,2]
[422753121,1779360632000,-500.0,0.00019734,2]